bitfinex-derivatives/quotes_ETHF0:USTF0_20251013
["timestamp","ask_amount","ask_price","bid_price","bid_amount"]
[1760390853860,0.65766,4270.0,4269.9,1.0664]
[1760390854860,0.65766,4270.0,4269.9,0.8304]
[1760390855164,0.65766,4270.0,4269.9,1.0664]
[1760390856064,0.89976,4270.0,4269.9,1.0664]
[1760390861760,0.89976,4270.0,4269.9,0.8304]
[1760390861969,0.42118,4269.8,4269.7,3.5672]
[1760390862167,1.14398,4269.8,4269.7,3.8022]
[1760390862366,0.89978,4269.8,4269.7,4.0419]
[1760390862566,0.89978,4269.8,4269.7,4.2732]
[1760390864370,0.89978,4269.8,4269.7,4.0382]
[1760390864572,1.144,4269.6,4269.5,0.3594]
[1760390864763,1.14401,4269.5,4269.4,0.9223]
[1760390865067,0.2442,4270.0,4269.4,1.48662]
[1760390865274,0.42121,4269.5,4269.4,1.49292]
[1760390865573,0.42121,4269.5,4269.4,1.0717]
[1760390866073,0.64481,4269.5,4269.4,1.0717]
[1760390869278,0.64481,4269.5,4269.4,1.49292]
[1760390869479,0.42121,4269.5,4269.4,1.49292]
[1760390872280,0.42121,4269.5,4269.4,2.73602413]
[1760390872475,0.2413,4269.8,4269.7,0.88149]
[1760390872678,0.2413,4269.8,4269.7,1.11649]
[1760390873076,0.2413,4269.8,4269.7,1.47439]
[1760390873474,3.2078,4270.1,4270.0,0.1394]
[1760390873779,0.66245,4270.1,4270.0,0.9576]
[1760390873979,0.66245,4270.1,4270.0,1.37876]
[1760390876489,0.89785,4270.1,4270.0,1.37876]
[1760390877189,0.89785,4270.1,4270.0,2.63155746]
[1760390878384,0.24304943,4270.4,4270.3,0.42113]
[1760390878585,0.00174943,4270.4,4270.3,2.7281708]
[1760390878890,0.42286943,4270.4,4270.3,1.47433]
[1760390879789,0.00174943,4270.4,4270.3,1.47433]
[1760390880891,0.00174943,4270.4,4270.3,2.07199086]
[1760390880892,0.47844943,4270.4,4270.3,2.07199086]
[1760390881191,0.89956943,4270.4,4270.3,2.30699086]
[1760390881691,1.12986943,4270.4,4270.3,1.0532]
[1760390881990,1.12986943,4270.4,4270.3,1.23933]
[1760390882186,1.12986943,4270.4,4270.3,1.47433]
[1760390883383,1.12986943,4270.4,4270.3,1.23933]
[1760390883583,1.12986943,4270.4,4270.1,1.25379086]
[1760390883784,1.12815,4270.1,4270.0,2.03285086]
[1760390884090,1.12815,4270.1,4270.0,2.26785086]
[1760390884786,0.42113,4270.3,4270.2,0.66084]
[1760390884990,0.89783,4270.3,4270.2,0.8182]
[1760390885194,1.12813,4270.3,4270.2,0.5976]
[1760390886496,1.12813,4270.3,4270.2,0.3579]
[1760390887893,1.12813,4270.3,4270.2,1.01874]
[1760390889195,0.89783,4270.3,4270.2,1.23934]
[1760390890492,0.66243,4270.3,4270.2,1.23934]
[1760390890695,0.89783,4270.3,4270.2,1.23934]
[1760390890894,1.12813,4270.3,4270.2,1.01874]
[1760390891094,1.12813,4270.3,4270.2,0.3579]
[1760390892698,1.12814,4270.2,4270.1,0.65615]
[1760390892896,1.12814,4270.2,4270.1,1.01405]
[1760390894195,1.12814,4270.2,4270.1,0.77905]
[1760390894902,0.707,4270.2,4270.1,0.77905]
[1760390898207,1.12814,4270.2,4270.1,0.77905]
[1760390899294,0.707,4270.2,4270.1,0.77905]
[1760390899700,0.4767,4270.2,4270.1,1.22645]
[1760390899902,0.00174943,4270.4,4270.3,1.22083]
[1760390900102,0.22954943,4270.4,4270.3,4.66363]
[1760390901010,0.00174943,4270.4,4270.3,4.66363]
[1760390906900,0.6488,4271.6,4271.5,0.2209]
[1760390907100,0.42103,4271.4,4271.3,0.2209]
[1760390907410,1.09573,4271.4,4271.3,0.4559]
[1760390907605,1.09573,4271.4,4271.3,0.8082]
[1760390908108,0.87833938,4271.4,4271.3,1.23119971]
[1760390908310,0.87833938,4271.4,4271.3,1.45769971]
[1760390909811,0.87833938,4271.4,4271.3,1.22269971]
[1760390910009,0.87833938,4271.4,4271.3,1.45769971]
[1760390910601,1.09813938,4271.4,4271.3,1.45769971]
[1760390911109,1.09813938,4271.4,4271.3,1.23119971]
[1760390913705,1.09813938,4271.4,4271.3,0.99619971]
[1760390915712,1.09813938,4271.4,4271.3,0.35426971]
[1760390915912,1.09813938,4271.4,4271.3,0.77529971]
[1760390918212,1.09813938,4271.4,4271.3,0.35426971]
[1760390919713,1.09813938,4271.4,4271.3,0.77529971]
[1760390920319,1.09813938,4271.4,4271.3,0.35426971]
[1760390920521,1.63901426,4271.4,4271.3,0.00196971]
[1760390920720,1.63904018,4271.4,4271.3,0.00196971]
[1760390922921,1.87404018,4271.4,4271.3,0.00196971]
[1760390924225,1.09813938,4271.4,4271.3,0.57516971]
[1760390924421,1.6405602,4271.4,4271.3,0.57516971]
[1760390924626,0.87833938,4271.4,4271.3,0.80166971]
[1760390926526,1.62878136,4271.4,4271.3,0.80166971]
[1760390926726,1.62878136,4271.4,4271.3,0.57516971]
[1760390926925,1.08623938,4271.4,4271.3,0.57516971]
[1760390927223,1.628778,4271.4,4271.3,0.00196971]
[1760390928428,4.836578,4271.4,4271.3,0.00196971]
[1760390928816,5.071578,4271.4,4271.3,0.00196971]
[1760390929023,1.06291,4270.5,4270.4,0.3295]
[1760390929221,0.4375,4270.2,4270.0,2.11430916]
[1760390929424,0.6418,4270.1,4270.0,1.5476]
[1760390929724,0.2123,4270.1,4270.0,1.7828]
[1760390929915,0.2123,4270.1,4270.0,1.78546655]
[1760390931822,0.2123,4270.1,4270.0,0.92386655]
[1760390932317,0.2123,4270.1,4270.0,1.34502655]
[1760390932523,0.85865,4270.1,4270.0,1.34502655]
[1760390935830,1.06295,4270.1,4270.0,1.34502655]
[1760390936423,1.06295,4270.1,4270.0,0.92386655]
[1760390936825,1.06295,4270.1,4270.0,0.00266655]
[1760390937329,1.06295,4270.1,4270.0,0.33216655]
[1760390937823,1.06295,4270.1,4270.0,0.68866655]
[1760390939926,0.85865,4270.1,4270.0,0.92386655]
[1760390940231,0.63345,4270.1,4270.0,0.92386655]
[1760390940625,0.85865,4270.1,4270.0,0.92386655]
[1760390942630,1.06295,4270.1,4270.0,0.92386655]
[1760390943933,1.06295,4270.1,4270.0,0.68866655]
[1760390944630,1.06295,4270.1,4270.0,0.00266655]
[1760390944836,1.06295,4270.1,4270.0,0.33216655]
[1760390945029,0.85865,4270.1,4270.0,0.68866655]
[1760390945336,1.06295,4270.1,4270.0,0.68866655]
[1760390949141,1.06295,4270.1,4270.0,0.33216655]
[1760390950841,1.06295,4270.1,4270.0,0.00266655]
[1760390953045,4.27075,4270.1,4270.0,0.00266655]
[1760390953236,4.81804523,4270.1,4270.0,0.00266655]
[1760390954739,1.05302,4269.6,4269.0,0.4583]
[1760390954938,1.05303,4269.5,4269.1,0.3295]
[1760390955145,4.80829075,4269.4,4269.0,0.1288]
[1760390955443,0.42127,4268.9,4268.8,0.3316]
[1760390955846,0.42127,4268.9,4268.8,0.00187978]
[1760390956147,3.62907,4268.9,4268.8,0.00187978]
[1760390956543,4.17624418,4268.9,4268.8,0.00187978]
[1760390957242,7.49203701,4268.9,4268.0,0.4604]
[1760390957440,0.42135,4268.1,4268.0,0.4604]
[1760390957643,0.42138,4267.8,4267.7,0.3316]
[1760390958347,0.42303091,4267.8,4267.7,0.33442501]
[1760390958843,0.42303091,4267.8,4267.7,0.00282501]
[1760390959543,0.65803091,4267.8,4267.7,0.00282501]
[1760390961753,0.65803091,4267.8,4267.4,0.3316]
[1760390961754,0.42145,4267.1,4267.0,0.4627]
[1760390961949,0.42145,4267.1,4267.0,0.6889]
[1760390962751,0.42145,4267.1,4267.0,0.69135288]
[1760390967953,0.42145,4267.1,4267.0,0.91045288]
[1760390968657,0.42145,4267.1,4267.0,0.69135288]
[1760390974058,0.42145,4267.1,4267.0,0.91045288]
[1760390980564,0.42145,4267.1,4267.0,0.46515288]
[1760390980861,0.42145,4267.1,4267.0,0.69135288]
[1760390986263,0.97049333,4267.1,4267.0,0.69135288]
[1760390986771,0.97049333,4267.1,4267.0,0.46515288]
[1760390987273,0.97049333,4267.1,4267.0,0.69125288]
[1760390988260,0.97049333,4267.1,4267.0,0.46515288]
[1760390988470,0.97049333,4267.1,4267.0,0.00245288]
[1760390989167,4.17829333,4267.1,4267.0,0.00245288]
[1760390989369,0.42149,4266.7,4266.6,0.17]
[1760390989660,0.97053333,4266.7,4266.6,0.17]
[1760390990465,0.97053333,4266.7,4266.6,0.17241254]
[1760390993064,0.97053333,4266.7,4266.6,0.00241254]
[1760390993366,41.77053333,4266.7,4266.6,0.00241254]
[1760390993571,0.97053333,4266.7,4266.6,0.00241254]
[1760390993972,41.77053333,4266.7,4266.6,0.00241254]
[1760390994473,0.97053333,4266.7,4266.6,0.76391254]
[1760390996970,0.42149,4266.7,4266.6,0.76391254]
[1760390997872,3.2078,4267.1,4267.0,0.1333]
[1760390998069,3.2078,4267.1,4267.0,0.5823]
[1760390998070,3.75692112,4267.1,4267.0,0.5823]
[1760390998372,0.42145,4267.1,4267.0,0.8948]
[1760391000568,0.97055526,4267.1,4267.0,0.8948]
[1760391002160,0.42145,4267.1,4267.0,0.8948]
[1760391003666,0.65643,4267.3,4267.2,0.7615]
[1760391003868,1.20556191,4267.3,4267.2,0.7615]
[1760391004068,0.97056191,4267.3,4267.2,0.5312]
[1760391005875,0.97056191,4267.3,4267.2,0.3125]
[1760391007276,4.17836191,4267.3,4267.2,0.3125]
[1760391009075,0.42145,4267.1,4267.0,0.1333]
[1760391009474,0.42145,4267.1,4267.0,0.4458]
[1760391011578,0.42145,4267.1,4267.0,0.6645]
[1760391013179,0.42145,4267.1,4267.0,0.4458]
[1760391014076,0.42145,4267.1,4267.0,0.8948]
[1760391014281,0.42149,4266.7,4266.6,0.31491254]
[1760391014882,0.42149,4266.7,4266.6,0.53361254]
[1760391015078,0.42149,4266.7,4266.6,0.76391254]
[1760391015485,0.42149,4266.7,4266.6,0.53361254]
[1760391016481,0.9702088,4266.7,4266.6,0.31491254]
[1760391016881,1.2052088,4266.7,4266.6,0.00241254]
[1760391017082,4.28714377,4266.7,4266.6,0.00241254]
[1760391017278,0.42152,4266.4,4266.3,0.1723]
[1760391017476,4.4130388,4266.4,4266.3,0.1723]
[1760391018485,4.4130388,4266.4,4266.3,0.17504718]
[1760391021389,0.42159,4265.7,4265.6,0.3185]
[1760391022282,0.42159,4265.7,4265.6,0.32092806]
[1760391022987,0.42159,4265.7,4265.6,0.75562806]
[1760391023288,0.42159,4265.7,4265.6,0.32092806]
[1760391023686,0.96937791,4265.7,4265.6,0.00242806]
[1760391024189,0.42159,4265.7,4265.6,0.00242806]
[1760391025491,0.96896935,4265.7,4265.6,0.00242806]
[1760391026191,0.42159,4265.7,4265.6,0.00242806]
[1760391026585,0.42159,4265.7,4265.6,0.32092806]
[1760391026989,0.42159,4265.7,4265.6,0.00242806]
[1760391027688,3.95405917,4265.7,4265.6,0.00242806]
[1760391027883,1.05411,4265.2,4264.6,0.3185]
[1760391028087,1.05417,4264.9,4264.6,0.3185]
[1760391028287,0.235,4264.8,4264.6,0.3185]
[1760391028489,0.42169,4264.6,4264.5,0.4542]
[1760391028890,0.42461624,4264.6,4264.5,0.45588111]
[1760391029989,0.42461624,4264.6,4264.5,0.67188111]
[1760391030894,0.42461624,4264.6,4264.5,0.45588111]
[1760391032999,0.42461624,4264.6,4264.5,0.00168111]
[1760391035293,6.67820466,4264.6,4264.5,0.00168111]
[1760391038200,6.91320466,4264.6,4264.5,0.45588111]
[1760391038695,6.91320466,4264.6,4264.5,0.13738111]
[1760391039502,6.91320466,4264.6,4264.5,0.00168111]
[1760391039697,0.42461624,4264.6,4264.5,0.67188111]
[1760391040200,0.42461624,4264.6,4264.5,0.45588111]
[1760391041697,0.42461624,4264.6,4264.5,0.89058111]
[1760391041902,1.05414,4265.1,4264.5,0.89058111]
[1760391041903,0.42166,4265.0,4264.9,0.7532]
[1760391042798,0.42390579,4265.0,4264.9,0.7532]
[1760391043196,0.42390579,4265.0,4264.9,0.3185]
[1760391048003,0.00224579,4265.0,4264.9,0.7467]
[1760391048203,0.00224579,4265.0,4264.9,1.16836]
[1760391048698,3.2078,4265.7,4265.5,0.6495]
[1760391048897,0.4216,4265.6,4265.5,0.8608]
[1760391049293,0.4216,4265.6,4265.5,1.28241]
[1760391049497,0.4216,4265.6,4265.5,0.8608]
[1760391049695,0.42347412,4265.6,4265.5,0.8608]
[1760391053713,0.00187412,4265.6,4265.5,1.28241]
[1760391053917,0.235,4266.4,4266.3,0.7334]
[1760391054122,0.4215,4266.6,4266.5,0.8608]
[1760391054814,0.42149,4266.8,4266.5,1.28231]
[1760391055017,3.20965774,4266.7,4266.6,1.1549]
[1760391056425,3.63114774,4266.7,4266.6,1.1549]
[1760391057222,0.42334774,4266.7,4266.6,1.1549]
[1760391059722,0.42334774,4266.7,4266.6,0.7334]
[1760391062426,0.42334774,4266.7,4266.6,0.3181]
[1760391062921,0.42334774,4266.7,4266.6,0.5221]
[1760391064021,0.42334774,4266.7,4266.6,0.3181]
[1760391065223,0.42334774,4266.7,4266.6,0.72042645]
[1760391069027,0.42334774,4266.7,4266.6,0.51642645]
[1760391071929,0.42334774,4266.7,4266.6,0.19832645]
[1760391073826,0.42334774,4266.7,4266.6,0.51642645]
[1760391074331,0.42334774,4266.7,4266.6,0.19832645]
[1760391075133,1.05379,4266.5,4266.0,0.4455]
[1760391075333,0.42155,4266.1,4266.0,0.4455]
[1760391077033,0.65655,4266.1,4266.0,0.4455]
[1760391077628,0.4216,4265.6,4265.5,0.1274]
[1760391077829,0.4216,4265.6,4265.5,0.5439]
[1760391078430,0.4216,4265.6,4265.5,0.8641]
[1760391078835,0.4216,4265.6,4265.5,0.4476]
[1760391079034,0.42163,4265.3,4265.2,0.3202]
[1760391081232,0.42165,4265.1,4265.0,0.4476]
[1760391081835,0.42167,4264.8,4264.7,0.3202]
[1760391084534,0.42167,4264.8,4264.7,0.5275]
[1760391084932,0.42167,4264.8,4264.7,0.7367]
[1760391085538,0.42167,4264.8,4264.7,0.3202]
[1760391086038,0.42167,4264.8,4264.7,0.7367]
[1760391087342,0.42163,4265.3,4265.2,0.2073]
[1760391087533,0.42163,4265.3,4265.2,0.7367]
[1760391091839,0.42163,4265.3,4265.2,0.3202]
[1760391092541,0.42163,4265.3,4265.2,0.5275]
[1760391096950,0.42163,4265.3,4265.2,0.3202]
[1760391097636,0.42163,4265.3,4265.2,0.5275]
[1760391098346,0.42163,4265.3,4265.2,0.7367]
[1760391101142,0.42163,4265.3,4265.2,0.5275]
[1760391103236,0.42159,4265.7,4265.6,0.5275]
[1760391103436,0.42159,4265.7,4265.6,1.1583]
[1760391104240,0.42158,4265.8,4265.7,0.3202]
[1760391104440,0.97617538,4265.8,4265.7,0.7367]
[1760391104642,3.2078,4266.5,4266.4,0.2073]
[1760391104838,4.18386909,4266.5,4266.4,0.3202]
[1760391105249,4.18386909,4266.5,4266.4,0.5275]
[1760391105449,4.18386909,4266.5,4266.4,0.744]
[1760391105948,0.97606909,4266.5,4266.4,0.744]
[1760391106144,0.42151,4266.5,4266.4,0.744]
[1760391111245,0.42334774,4266.7,4266.4,0.744]
[1760391111452,0.42334774,4266.7,4266.6,0.7568]
[1760391125158,0.42334774,4266.7,4266.6,1.1783]
[1760391125756,0.00185774,4266.7,4266.6,1.1783]
[1760391126155,0.42334774,4266.7,4266.6,1.1783]
[1760391126458,4.26134,4267.5,4267.2,0.7568]
[1760391126760,0.42142,4267.4,4267.3,0.7568]
[1760391127360,0.42416028,4267.4,4267.3,0.7568]
[1760391133257,0.97788004,4267.4,4267.3,0.7568]
[1760391136057,0.97788004,4267.4,4267.0,0.123]
[1760391136058,0.42145,4267.1,4267.0,0.123]
[1760391136254,0.97516976,4267.1,4267.0,0.123]
[1760391136655,0.97516976,4267.1,4267.0,0.4426]
[1760391136853,0.97516976,4267.1,4267.0,0.6529]
[1760391138660,0.97557713,4267.1,4267.0,0.6529]
[1760391141871,0.97557713,4267.1,4267.0,0.8603]
[1760391143269,0.97557713,4267.1,4267.0,0.6529]
[1760391145173,0.97557713,4267.1,4267.0,0.4426]
[1760391146174,0.97557713,4267.1,4267.0,0.6529]
[1760391146175,0.97582718,4267.1,4267.0,0.6529]
[1760391148277,0.97582718,4267.1,4267.0,0.4426]
[1760391149473,0.97582718,4267.1,4267.0,0.8603]
[1760391150671,0.55437718,4267.1,4267.0,1.28176]
[1760391151071,0.42143,4267.3,4267.2,0.7373]
[1760391151273,0.97593281,4267.3,4267.2,0.7373]
[1760391154883,0.55450281,4267.3,4267.2,1.15874]
[1760391155077,0.00274028,4267.4,4267.3,1.15873]
[1760391155281,0.00274028,4267.4,4267.3,4.36653]
[1760391156279,0.00274028,4267.4,4267.3,4.60153]
[1760391157878,0.42137,4267.9,4267.8,0.42138]
[1760391158183,3.2078,4268.5,4268.3,1.15863]
[1760391158184,0.42132,4268.4,4268.3,1.15863]
[1760391158487,0.97493661,4268.4,4268.3,1.15863]
[1760391159181,0.42386703,4268.4,4268.3,1.16113904]
[1760391159486,0.00254703,4268.4,4268.3,4.36893904]
[1760391160278,0.00254703,4268.4,4268.3,3.94760904]
[1760391160783,0.42386703,4268.4,4268.3,3.94760904]
[1760391161481,0.00254703,4268.4,4268.3,4.36893904]
[1760391163782,0.42386703,4268.4,4268.3,4.36893904]
[1760391163983,0.42386703,4268.4,4268.3,3.94760904]
[1760391164188,0.42386703,4268.4,4268.3,4.18260904]
[1760391166988,0.42386703,4268.4,4268.3,3.94760904]
[1760391167183,0.42386703,4268.4,4268.3,4.18260904]
[1760391167384,0.42386703,4268.4,4268.3,3.74020904]
[1760391167695,0.42386703,4268.4,4268.3,0.00250904]
[1760391168098,0.42386703,4268.4,4268.3,0.31770904]
[1760391171197,3.63166703,4268.4,4268.3,0.31770904]
[1760391172495,0.79735,4267.1,4267.0,3.2078]
[1760391172997,0.70789,4266.7,4266.6,0.4481]
[1760391173500,0.70789,4266.7,4266.6,0.45063187]
[1760391174497,0.70789,4266.7,4266.6,0.78103187]
[1760391175206,0.70789,4266.7,4266.6,0.76093187]
[1760391182005,0.56469,4266.7,4266.6,0.76093187]
[1760391185212,0.70789,4266.7,4266.6,0.76093187]
[1760391185710,0.42149,4266.7,4266.6,0.76093187]
[1760391186210,0.70789,4266.7,4266.6,0.76093187]
[1760391187204,0.42149,4266.7,4266.6,0.76093187]
[1760391187403,0.56469,4266.7,4266.6,0.76093187]
[1760391187908,3.2078,4267.2,4266.6,0.76093187]
[1760391188108,3.91564,4267.2,4267.1,0.7584]
[1760391188307,4.00514,4267.2,4267.1,0.5435]
[1760391190207,4.00514,4267.2,4267.1,0.3304]
[1760391191209,0.2864,4266.8,4266.7,0.5435]
[1760391191708,0.2864,4266.8,4266.7,0.7584]
[1760391192108,0.70788,4266.8,4266.7,0.7584]
[1760391192516,0.70788,4266.8,4266.7,0.5435]
[1760391194506,0.70788,4266.8,4266.7,0.7584]
[1760391196315,0.56468,4266.8,4266.7,0.7584]
[1760391199117,0.56478,4266.8,4266.7,0.7584]
[1760391199522,0.70808,4266.8,4266.7,0.7584]
[1760391200417,0.42148,4266.8,4266.7,0.7584]
[1760391200622,3.2078,4267.0,4266.9,0.777]
[1760391200823,0.42146,4267.1,4267.0,0.5795]
[1760391201019,0.42146,4267.1,4267.0,0.9064]
[1760391202623,4.26131,4267.7,4267.2,0.777]
[1760391202624,0.42144,4267.3,4267.2,0.777]
[1760391202825,0.975628,4267.3,4267.2,0.777]
[1760391203123,0.975628,4267.3,4267.2,1.19844]
[1760391203619,0.975628,4267.3,4267.2,0.777]
[1760391205323,0.42144,4267.3,4267.2,0.777]
[1760391205515,0.97545684,4267.3,4267.2,0.777]
[1760391206226,0.42144,4267.3,4267.2,0.777]
[1760391207128,0.42143,4267.3,4267.2,0.777]
[1760391210228,0.42143,4267.3,4267.2,1.012]
[1760391211125,0.70803,4267.3,4267.2,1.012]
[1760391211722,0.56473,4267.3,4267.2,1.012]
[1760391211928,0.42143,4267.3,4267.2,1.012]
[1760391213327,0.56473,4267.3,4267.2,1.012]
[1760391215934,0.42143,4267.3,4267.2,1.012]
[1760391216231,0.56473,4267.3,4267.2,1.012]
[1760391216432,0.42143,4267.3,4267.2,1.012]
[1760391219235,0.42143,4267.3,4267.2,0.777]
[1760391222137,0.56473,4267.3,4267.2,0.777]
[1760391222536,0.42143,4267.3,4267.2,0.777]
[1760391227235,0.42143,4267.3,4267.2,1.19844]
[1760391228437,0.42143,4267.4,4267.3,0.42142]
[1760391228641,0.42143,4267.4,4267.3,1.15672]
[1760391228836,3.2078,4267.9,4267.7,0.4177]
[1760391229037,0.42137,4267.9,4267.8,0.9703]
[1760391231644,0.63877,4267.9,4267.8,0.9703]
[1760391232647,0.42137,4267.9,4267.8,0.9703]
[1760391233348,0.63877,4267.9,4267.8,0.9703]
[1760391234342,0.42137,4267.9,4267.8,0.9703]
[1760391235343,0.85987,4267.9,4267.8,0.9703]
[1760391235547,0.63877,4267.9,4267.8,0.9703]
[1760391236448,0.42137,4267.9,4267.8,0.9703]
[1760391242052,0.63877,4267.9,4267.8,0.9703]
[1760391243252,0.97627,4267.9,4267.8,0.9703]
[1760391243551,0.63877,4267.9,4267.8,0.9703]
[1760391244351,0.42137,4267.9,4267.8,0.9703]
[1760391246856,1.05357,4267.4,4267.1,0.3176]
[1760391247058,1.19744,4267.2,4267.1,0.5218]
[1760391247251,1.19744,4267.2,4267.0,3.5722]
[1760391247449,1.19745,4267.1,4267.0,3.9646]
[1760391247949,1.19745,4267.1,4267.0,3.7604]
[1760391248553,1.19745,4267.1,4267.0,3.9646]
[1760391249157,1.19745,4267.1,4267.0,3.7296]
[1760391250257,1.19745,4267.1,4267.0,0.5218]
[1760391252950,1.19745,4267.1,4267.0,0.3176]
[1760391253953,1.19745,4267.1,4267.0,0.5218]
[1760391258263,1.19745,4267.1,4267.0,0.7353]
[1760391259062,1.19745,4267.1,4267.0,0.5218]
[1760391265070,0.42144,4267.2,4267.1,1.17275]
[1760391265265,0.42144,4267.2,4267.1,1.40775]
[1760391265473,0.2172,4267.6,4267.5,0.8826]
[1760391265864,0.2172,4267.6,4267.5,1.1176]
[1760391266669,0.6386,4267.6,4267.5,1.1176]
[1760391274276,0.9718,4267.6,4267.5,1.1176]
[1760391274874,0.6386,4267.6,4267.5,1.1176]
[1760391275375,0.9718,4267.6,4267.5,1.1176]
[1760391276977,1.1814,4267.6,4267.5,1.1176]
[1760391286587,0.6386,4267.6,4267.5,1.1176]
[1760391286888,0.4214,4267.6,4267.5,1.1176]
[1760391287087,0.6295,4267.6,4267.5,1.1176]
[1760391287386,1.1794,4267.6,4267.5,1.1176]
[1760391291687,0.4214,4267.6,4267.5,1.1176]
[1760391292191,0.6276,4267.6,4267.5,1.1176]
[1760391292488,0.9528,4267.6,4267.5,1.1176]
[1760391295285,1.1623,4267.6,4267.5,1.1176]
[1760391297089,0.4214,4267.6,4267.5,1.1176]
[1760391301891,0.6276,4267.6,4267.5,1.1176]
[1760391302094,1.1623,4267.6,4267.5,1.1176]
[1760391302294,1.1623,4267.6,4267.5,1.1091]
[1760391302591,0.6276,4267.6,4267.5,1.1091]
[1760391307700,0.4214,4267.6,4267.5,1.1091]
[1760391316003,0.6276,4267.6,4267.5,1.1091]
[1760391318108,0.4214,4267.6,4267.5,1.1091]
[1760391323508,0.6399,4267.6,4267.5,1.1091]
[1760391325315,0.4214,4267.6,4267.5,1.1091]
[1760391327215,0.6399,4267.6,4267.5,1.1091]
[1760391328218,0.4214,4267.6,4267.5,1.1091]
[1760391335816,0.95,4267.6,4267.5,1.1091]
[1760391336119,0.6399,4267.6,4267.5,1.1091]
[1760391340115,1.7183987,4267.6,4267.5,0.5363]
[1760391340419,1.7183987,4267.6,4267.5,0.3213]
[1760391340721,1.7183987,4267.6,4267.5,0.7812]
[1760391344720,1.7183987,4267.6,4266.8,0.3333]
[1760391344721,1.16417,4266.9,4266.8,0.3333]
[1760391345023,1.16419,4266.7,4266.6,0.56073187]
[1760391345325,1.16419,4266.7,4266.6,0.79573187]
[1760391347523,4.37199,4266.7,4266.6,0.00253187]
[1760391347920,4.37199,4266.7,4265.5,2.22323352]
[1760391347921,0.42159,4265.7,4265.6,0.235]
[1760391348130,1.18269,4265.7,4265.6,0.5376]
[1760391348428,1.18269,4265.7,4265.6,0.3331]
[1760391348818,1.18269,4265.7,4265.6,0.33497575]
[1760391349823,1.18269,4265.7,4265.6,0.00187575]
[1760391353024,0.42167,4264.9,4264.8,3.2078]
[1760391353227,0.42167,4264.9,4264.4,0.5494]
[1760391353228,0.7634,4264.5,4264.4,0.5494]
[1760391353423,0.42172,4264.4,4264.3,3.2078]
[1760391353732,1.18512,4264.4,4264.3,3.2078]
[1760391354231,1.18679884,4264.4,4264.3,3.2107787]
[1760391355323,1.18679884,4264.4,4264.3,0.0029787]
[1760391356234,0.2085,4263.6,4263.5,0.235]
[1760391356432,0.7634,4263.6,4263.5,0.235]
[1760391356633,0.7634,4263.6,4263.5,0.5585]
[1760391356833,0.7634,4263.6,4263.5,0.7844]
[1760391357134,0.7634,4263.6,4263.5,0.78656606]
[1760391358724,0.7634,4263.6,4263.5,0.55156606]
[1760391360232,1.18519,4263.6,4263.5,0.55156606]
[1760391360532,0.7634,4263.6,4263.5,0.32566606]
[1760391360731,0.7634,4263.6,4263.5,0.55156606]
[1760391360931,0.7634,4263.6,4263.5,0.89156606]
[1760391362036,1.05432,4264.3,4263.5,0.89156606]
[1760391362037,0.42177,4263.9,4263.8,0.2259]
[1760391362237,0.42177,4263.9,4263.8,0.7672]
[1760391362436,1.18517,4263.9,4263.8,0.7672]
[1760391363037,1.18517,4263.9,4263.8,0.5494]
[1760391363730,0.33,4264.3,4263.8,0.4437]
[1760391363931,0.7634,4264.3,4264.2,0.7672]
[1760391364331,1.18513,4264.3,4264.2,0.7672]
[1760391364831,0.00167884,4264.4,4264.3,0.7672]
[1760391365231,0.22657884,4264.4,4264.3,0.7672]
[1760391365631,0.55657884,4264.4,4264.3,0.7672]
[1760391365831,0.00167884,4264.4,4264.3,0.7672]
[1760391366033,0.00167884,4264.4,4264.3,4.39673]
[1760391366934,0.00167884,4264.4,4264.3,4.63173]
[1760391367826,3.2078,4265.5,4264.3,3.9841]
[1760391368031,0.2249,4265.4,4265.3,0.7672]
[1760391368232,0.42162,4265.5,4265.4,0.3235]
[1760391368434,0.42162,4265.5,4265.4,0.7672]
[1760391368634,0.64652,4265.5,4265.4,0.7672]
[1760391368833,0.97867459,4265.5,4265.4,0.7672]
[1760391369535,0.64867459,4265.5,4265.4,0.7672]
[1760391370134,0.55705459,4265.5,4265.4,0.7672]
[1760391370539,0.76555459,4265.5,4265.4,0.7672]
[1760391372741,0.43555459,4265.5,4265.4,0.7672]
[1760391373148,0.85716459,4265.5,4265.4,0.7672]
[1760391374940,0.42376459,4265.5,4265.4,0.7672]
[1760391375447,0.64866459,4265.5,4265.4,0.7672]
[1760391375643,0.97346459,4265.5,4265.4,0.7672]
[1760391376545,0.64866459,4265.5,4265.4,0.7672]
[1760391378549,0.97346459,4265.5,4265.4,0.7672]
[1760391378953,0.42376459,4265.5,4265.4,0.7672]
[1760391379148,1.17126459,4265.5,4265.4,0.7672]
[1760391385258,0.42376459,4265.5,4265.4,0.7672]
[1760391386361,0.95466459,4265.5,4265.4,0.7672]
[1760391386664,1.17126459,4265.5,4265.4,0.7672]
[1760391387760,0.00215459,4265.5,4265.4,1.18882]
[1760391388453,3.2078,4266.0,4265.9,0.42157]
[1760391388660,3.2078,4266.0,4265.9,1.41047]
[1760391388860,3.2078,4266.5,4266.1,0.42154]
[1760391389060,3.4139,4266.5,4266.4,0.7539]
[1760391389264,3.9553,4266.5,4266.4,0.7539]
[1760391389464,3.95808251,4266.5,4266.4,0.7539]
[1760391392266,4.37959251,4266.5,4266.4,0.7539]
[1760391393968,1.17179251,4266.5,4266.4,0.7539]
[1760391400168,0.63039251,4266.5,4266.4,0.7539]
[1760391401075,0.95519251,4266.5,4266.4,0.7539]
[1760391401775,0.63039251,4266.5,4266.4,0.7539]
[1760391402669,0.95519251,4266.5,4266.4,0.7539]
[1760391402975,0.63039251,4266.5,4266.4,0.7539]
[1760391403179,0.42429251,4266.5,4266.4,0.7539]
[1760391406278,0.00278251,4266.5,4266.4,0.7539]
[1760391406481,0.42429251,4266.5,4266.4,0.7539]
[1760391412884,0.42429251,4266.5,4266.4,1.17542]